[Event "Titled Tuesday Blitz March 21 Early 2023"]
[White "Vakhlamov, Igor L."]
[Black "Orlov, Georgi"]
[WhiteFideId "24126748"]
[BlackFideId "2011271"]
[WhiteElo "2400"]
[BlackElo "2624"]
[Result "1-0"]
[Round "11"]
[TimeControl "180+2"]
[Date "2023.03.21"]
[WhiteClock "0:00:08"]
[BlackClock "0:00:04"]

1. e4 {[%clk 0:03:00]}  d6 {[%clk 0:02:56]} 2. d4 {[%clk 0:03:00]}  Nf6 {[%clk 0:02:56]} 3. Nc3 {[%clk 0:02:59]}  g6 {[%clk 0:02:56]} 4. Be3 {[%clk 0:02:59]}  Bg7 {[%clk 0:02:55]} 5. Qd2 {[%clk 0:03:00]}  Ng4 {[%clk 0:02:55]} 6. Bg5 {[%clk 0:02:59]}  h6 {[%clk 0:02:55]} 7. Bh4 {[%clk 0:02:59]}  g5 {[%clk 0:02:55]} 8. Bg3 {[%clk 0:03:00]}  e5 {[%clk 0:02:51]} 9. Nf3 {[%clk 0:02:37]}  exd4 {[%clk 0:02:45]} 10. Nxd4 {[%clk 0:02:38]}  Nc6 {[%clk 0:02:46]} 11. Nxc6 {[%clk 0:02:14]}  bxc6 {[%clk 0:02:45]} 12. Bc4 {[%clk 0:02:12]}  Ne5 {[%clk 0:02:41]} 13. Bb3 {[%clk 0:02:11]}  Ba6 {[%clk 0:02:39]} 14. h4 {[%clk 0:02:03]}  Rb8 {[%clk 0:02:29]} 15. hxg5 {[%clk 0:02:02]}  hxg5 {[%clk 0:02:28]} 16. Rxh8+ {[%clk 0:02:03]}  Bxh8 {[%clk 0:02:28]} 17. O-O-O {[%clk 0:02:02]}  Qf6 {[%clk 0:02:24]} 18. Qe3 {[%clk 0:01:49]}  Rb6 {[%clk 0:02:07]} 19. f4 {[%clk 0:01:34]}  gxf4 {[%clk 0:02:01]} 20. Bxf4 {[%clk 0:01:35]}  Nc4 {[%clk 0:01:19]} 21. Qg3 {[%clk 0:01:34]}  Bg7 {[%clk 0:01:02]} 22. e5 {[%clk 0:01:15]}  Nxe5 {[%clk 0:00:59]} 23. Bxe5 {[%clk 0:01:06]}  dxe5 {[%clk 0:00:57]} 24. Qh3 {[%clk 0:01:06]}  Qh6+ {[%clk 0:00:56]} 25. Qxh6 {[%clk 0:01:03]}  Bxh6+ {[%clk 0:00:56]} 26. Kb1 {[%clk 0:01:04]}  Bc8 {[%clk 0:00:47]} 27. Ne4 {[%clk 0:00:59]}  Ke7 {[%clk 0:00:45]} 28. Rh1 {[%clk 0:00:54]}  c5 {[%clk 0:00:33]} 29. Nxc5 {[%clk 0:00:53]}  Rg6 {[%clk 0:00:31]} 30. Bd5 {[%clk 0:00:51]}  f5 {[%clk 0:00:28]} 31. c4 {[%clk 0:00:26]}  Kd6 {[%clk 0:00:19]} 32. b4 {[%clk 0:00:23]}  e4 {[%clk 0:00:15]} 33. g4 {[%clk 0:00:16]}  Be3 {[%clk 0:00:12]} 34. gxf5 {[%clk 0:00:14]}  Bxf5 {[%clk 0:00:12]} 35. Bxe4 {[%clk 0:00:13]}  Bxe4+ {[%clk 0:00:10]} 36. Nxe4+ {[%clk 0:00:14]}  Ke5 {[%clk 0:00:10]} 37. Nc3 {[%clk 0:00:12]}  Kd4 {[%clk 0:00:10]} 38. Nd5 {[%clk 0:00:13]}  Bd2 {[%clk 0:00:10]} 39. Rh4+ {[%clk 0:00:13]}  Kd3 {[%clk 0:00:10]} 40. Kb2 {[%clk 0:00:12]}  Be1 {[%clk 0:00:08]} 41. Rf4 {[%clk 0:00:09]}  c6 {[%clk 0:00:07]} 42. Ne7 {[%clk 0:00:07]}  Re6 {[%clk 0:00:04]} 43. Nf5 {[%clk 0:00:06]}  Bxb4 {[%clk 0:00:02]} 44. Nd4 {[%clk 0:00:07]}  Re3 {[%clk 0:00:01]} 45. Nxc6 {[%clk 0:00:06]}  Bc3+ {[%clk 0:00:01]} 46. Kb3 {[%clk 0:00:05]}  Bd2 {[%clk 0:00:01]} 47. Rd4+ {[%clk 0:00:04]}  Ke2+ {[%clk 0:00:01]} 48. Kc2 {[%clk 0:00:05]}  Be1 {[%clk 0:00:01]} 49. Rg4 {[%clk 0:00:03]}  Rc3+ {[%clk 0:00:02]} 50. Kb2 {[%clk 0:00:04]}  Rf3 {[%clk 0:00:02]} 51. Nd4+ {[%clk 0:00:04]}  Ke3 {[%clk 0:00:01]} 52. Nxf3 {[%clk 0:00:05]}  Kxf3 {[%clk 0:00:02]} 53. Rd4 {[%clk 0:00:06]}  Bf2 {[%clk 0:00:02]} 54. Rd7 {[%clk 0:00:06]}  Ke4 {[%clk 0:00:03]} 55. Kb3 {[%clk 0:00:07]}  Be3 {[%clk 0:00:03]} 56. Ka4 {[%clk 0:00:07]}  Kf4 {[%clk 0:00:03]} 57. Kb5 {[%clk 0:00:08]}  Ke5 {[%clk 0:00:03]} 58. a4 {[%clk 0:00:08]}  Ke6 {[%clk 0:00:04]} 59. Rd3 {[%clk 0:00:08]}  a6+ {[%clk 0:00:04]} 60. Kxa6 {[%clk 0:00:08]} 1-0


[Site "https://www.chess.com"]

[Event "Titled Tuesday Blitz March 21 Early 2023"]
[White "Hirneise, Jens"]
[Black "Korchmar, Vasiliy"]
[WhiteFideId "24614734"]
[BlackFideId "24131750"]
[WhiteElo "2345"]
[BlackElo "2370"]
[Result "0-1"]
[Round "11"]
[TimeControl "180+2"]
[Date "2023.03.21"]
[WhiteClock "0:00:11"]
[BlackClock "0:00:46"]

1. Nf3 {[%clk 0:02:59]}  d5 {[%clk 0:03:00]} 2. g3 {[%clk 0:02:59]}  g6 {[%clk 0:03:00]} 3. c4 {[%clk 0:02:59]}  Bg7 {[%clk 0:03:01]} 4. cxd5 {[%clk 0:02:59]}  Qxd5 {[%clk 0:03:01]} 5. Nc3 {[%clk 0:02:59]}  Qh5 {[%clk 0:03:00]} 6. h3 {[%clk 0:02:54]}  Nc6 {[%clk 0:02:59]} 7. Bg2 {[%clk 0:02:54]}  Nf6 {[%clk 0:02:48]} 8. d3 {[%clk 0:02:48]}  Be6 {[%clk 0:02:48]} 9. g4 {[%clk 0:02:46]}  Qa5 {[%clk 0:02:47]} 10. Bd2 {[%clk 0:02:47]}  Qb6 {[%clk 0:02:43]} 11. Na4 {[%clk 0:02:44]}  Qb5 {[%clk 0:02:43]} 12. Rc1 {[%clk 0:02:21]}  h5 {[%clk 0:02:40]} 13. Ng5 {[%clk 0:02:13]}  Bxa2 {[%clk 0:02:37]} 14. Nc3 {[%clk 0:02:10]}  Qb3 {[%clk 0:02:33]} 15. Nxa2 {[%clk 0:02:09]}  Qxa2 {[%clk 0:02:34]} 16. Rxc6 {[%clk 0:02:09]}  hxg4 {[%clk 0:02:28]} 17. Rxc7 {[%clk 0:02:08]}  gxh3 {[%clk 0:02:28]} 18. Bxb7 {[%clk 0:02:07]}  Rb8 {[%clk 0:02:26]} 19. Qc1 {[%clk 0:01:55]}  O-O {[%clk 0:02:21]} 20. Rxh3 {[%clk 0:01:44]}  Nh5 {[%clk 0:02:21]} 21. Bc3 {[%clk 0:01:38]}  Bxc3+ {[%clk 0:02:20]} 22. Qxc3 {[%clk 0:01:35]}  Rxb7 {[%clk 0:02:02]} 23. Rxb7 {[%clk 0:01:28]}  Qd5 {[%clk 0:02:03]} 24. Ne4 {[%clk 0:01:05]}  Qxb7 {[%clk 0:02:01]} 25. Qe5 {[%clk 0:01:04]}  Rc8 {[%clk 0:01:49]} 26. Kf1 {[%clk 0:00:36]}  Qc7 {[%clk 0:01:49]} 27. Qxc7 {[%clk 0:00:26]}  Rxc7 {[%clk 0:01:50]} 28. Ke1 {[%clk 0:00:25]}  Rc2 {[%clk 0:01:49]} 29. Kd1 {[%clk 0:00:20]}  Rxb2 {[%clk 0:01:49]} 30. Nc3 {[%clk 0:00:20]}  Nf4 {[%clk 0:01:42]} 31. Re3 {[%clk 0:00:20]}  Ne6 {[%clk 0:01:40]} 32. Kc1 {[%clk 0:00:19]}  Rb7 {[%clk 0:01:35]} 33. Re4 {[%clk 0:00:18]}  a5 {[%clk 0:01:29]} 34. Ra4 {[%clk 0:00:18]}  Ra7 {[%clk 0:01:30]} 35. d4 {[%clk 0:00:18]}  Kg7 {[%clk 0:01:12]} 36. Kd2 {[%clk 0:00:18]}  g5 {[%clk 0:01:06]} 37. e3 {[%clk 0:00:19]}  g4 {[%clk 0:01:04]} 38. Kd3 {[%clk 0:00:18]}  f5 {[%clk 0:01:03]} 39. Ne2 {[%clk 0:00:19]}  Ng5 {[%clk 0:01:03]} 40. Nc1 {[%clk 0:00:19]}  Ne4 {[%clk 0:01:02]} 41. Ra2 {[%clk 0:00:18]}  a4 {[%clk 0:01:01]} 42. Ne2 {[%clk 0:00:19]}  Nxf2+ {[%clk 0:00:57]} 43. Kc4 {[%clk 0:00:18]}  Ne4 {[%clk 0:00:58]} 44. Kd5 {[%clk 0:00:18]}  Kf6 {[%clk 0:00:57]} 45. Kc6 {[%clk 0:00:15]}  g3 {[%clk 0:00:56]} 46. Kb6 {[%clk 0:00:14]}  Ra8 {[%clk 0:00:56]} 47. Nf4 {[%clk 0:00:15]}  a3 {[%clk 0:00:55]} 48. Nd5+ {[%clk 0:00:14]}  Kg5 {[%clk 0:00:53]} 49. Nxe7 {[%clk 0:00:13]}  Nc3 {[%clk 0:00:47]} 50. Ra1 {[%clk 0:00:13]}  a2 {[%clk 0:00:46]} 51. d5 {[%clk 0:00:13]}  Rb8+ {[%clk 0:00:44]} 52. Kc7 {[%clk 0:00:13]}  Rb1 {[%clk 0:00:45]} 53. Rxa2 {[%clk 0:00:10]}  Nxa2 {[%clk 0:00:46]} 54. d6 {[%clk 0:00:11]}  Rd1 {[%clk 0:00:47]} 55. d7 {[%clk 0:00:11]}  g2 {[%clk 0:00:46]} 0-1


[Site "https://www.chess.com"]

[Event "Titled Tuesday Blitz March 21 Early 2023"]
[White "Belozerov, Andrei"]
[Black "Ben Artzi, Ido"]
[WhiteFideId "4120213"]
[BlackFideId "2810913"]
[WhiteElo "2360"]
[BlackElo "2204"]
[Result "1-0"]
[Round "11"]
[TimeControl "180+2"]
[Date "2023.03.21"]
[WhiteClock "0:00:04"]
[BlackClock "0:00:01"]

1. d4 {[%clk 0:03:00]}  Nf6 {[%clk 0:02:56]} 2. c4 {[%clk 0:02:59]}  e6 {[%clk 0:02:55]} 3. g3 {[%clk 0:02:59]}  d5 {[%clk 0:02:55]} 4. Nf3 {[%clk 0:02:59]}  dxc4 {[%clk 0:02:55]} 5. Bg2 {[%clk 0:02:59]}  c5 {[%clk 0:02:55]} 6. O-O {[%clk 0:02:58]}  Nc6 {[%clk 0:02:54]} 7. Qa4 {[%clk 0:02:58]}  Bd7 {[%clk 0:02:48]} 8. Qxc4 {[%clk 0:02:54]}  b5 {[%clk 0:02:48]} 9. Qd3 {[%clk 0:02:53]}  c4 {[%clk 0:02:45]} 10. Qd1 {[%clk 0:02:52]}  Be7 {[%clk 0:02:40]} 11. a4 {[%clk 0:02:34]}  b4 {[%clk 0:02:30]} 12. Nbd2 {[%clk 0:01:59]}  Na5 {[%clk 0:02:29]} 13. Ne5 {[%clk 0:01:57]}  Rc8 {[%clk 0:02:29]} 14. Nxd7 {[%clk 0:01:46]}  Qxd7 {[%clk 0:02:27]} 15. e3 {[%clk 0:01:46]}  c3 {[%clk 0:02:22]} 16. bxc3 {[%clk 0:01:45]}  bxc3 {[%clk 0:02:23]} 17. Nb3 {[%clk 0:01:43]}  Nxb3 {[%clk 0:02:11]} 18. Qxb3 {[%clk 0:01:43]}  O-O {[%clk 0:02:12]} 19. a5 {[%clk 0:01:28]}  Nd5 {[%clk 0:02:11]} 20. a6 {[%clk 0:01:25]}  Rb8 {[%clk 0:02:11]} 21. Qa4 {[%clk 0:01:22]}  Qxa4 {[%clk 0:02:09]} 22. Rxa4 {[%clk 0:01:23]}  Rfc8 {[%clk 0:02:06]} 23. e4 {[%clk 0:01:01]}  Nb4 {[%clk 0:02:06]} 24. Ba3 {[%clk 0:00:50]}  c2 {[%clk 0:02:06]} 25. d5 {[%clk 0:00:39]}  Nd3 {[%clk 0:01:59]} 26. Bxe7 {[%clk 0:00:26]}  Rb1 {[%clk 0:01:58]} 27. Bg5 {[%clk 0:00:21]}  c1=Q {[%clk 0:01:34]} 28. Bxc1 {[%clk 0:00:20]}  Rcxc1 {[%clk 0:01:33]} 29. dxe6 {[%clk 0:00:18]}  fxe6 {[%clk 0:01:33]} 30. Rd4 {[%clk 0:00:17]}  Ne1 {[%clk 0:01:26]} 31. Rd7 {[%clk 0:00:15]}  Nf3+ {[%clk 0:01:22]} 32. Bxf3 {[%clk 0:00:14]}  Rxf1+ {[%clk 0:01:23]} 33. Kg2 {[%clk 0:00:15]}  Rg1+ {[%clk 0:01:23]} 34. Kh3 {[%clk 0:00:15]}  Rb6 {[%clk 0:01:21]} 35. Rxa7 {[%clk 0:00:14]}  Ra1 {[%clk 0:01:21]} 36. Be2 {[%clk 0:00:13]}  Ra2 {[%clk 0:01:17]} 37. Bc4 {[%clk 0:00:13]}  Ra4 {[%clk 0:01:16]} 38. Rb7 {[%clk 0:00:11]}  Rbxa6 {[%clk 0:00:54]} 39. Bxa6 {[%clk 0:00:10]}  Rxa6 {[%clk 0:00:55]} 40. e5 {[%clk 0:00:10]}  h6 {[%clk 0:00:48]} 41. f4 {[%clk 0:00:10]}  Kh7 {[%clk 0:00:48]} 42. Kg4 {[%clk 0:00:11]}  Kg6 {[%clk 0:00:48]} 43. Re7 {[%clk 0:00:10]}  h5+ {[%clk 0:00:47]} 44. Kh4 {[%clk 0:00:10]}  Ra2 {[%clk 0:00:42]} 45. h3 {[%clk 0:00:10]}  Ra6 {[%clk 0:00:42]} 46. Rd7 {[%clk 0:00:07]}  Ra3 {[%clk 0:00:24]} 47. Rd6 {[%clk 0:00:07]}  Kf5 {[%clk 0:00:19]} 48. Rd7 {[%clk 0:00:07]}  Kg6 {[%clk 0:00:14]} 49. Re7 {[%clk 0:00:06]}  Ra6 {[%clk 0:00:14]} 50. Rc7 {[%clk 0:00:07]}  Ra3 {[%clk 0:00:12]} 51. Rb7 {[%clk 0:00:06]}  Rc3 {[%clk 0:00:11]} 52. Rb6 {[%clk 0:00:06]}  Kf5 {[%clk 0:00:10]} 53. Rb7 {[%clk 0:00:05]}  g5+ {[%clk 0:00:08]} 54. fxg5 {[%clk 0:00:04]}  Kxe5 {[%clk 0:00:05]} 55. Rf7 {[%clk 0:00:04]}  Kd4 {[%clk 0:00:03]} 56. g6 {[%clk 0:00:04]}  Rc8 {[%clk 0:00:01]} 57. g7 {[%clk 0:00:04]} 1-0


[Site "https://www.chess.com"]

[Event "Titled Tuesday Blitz March 21 Early 2023"]
[White "Papasimakopoulos, Alexandros"]
[Black "Vaglio Munoz, Jaime"]
[WhiteFideId "4244125"]
[BlackFideId "6500145"]
[WhiteElo "2359"]
[BlackElo "2199"]
[Result "1-0"]
[Round "11"]
[TimeControl "180+2"]
[Date "2023.03.21"]
[WhiteClock "0:00:42"]
[BlackClock "0:00:13"]

1. a3 {[%clk 0:02:43]}  g6 {[%clk 0:02:56]} 2. h3 {[%clk 0:02:43]}  Bg7 {[%clk 0:02:56]} 3. d4 {[%clk 0:02:43]}  d6 {[%clk 0:02:49]} 4. Nf3 {[%clk 0:02:42]}  Nd7 {[%clk 0:02:47]} 5. e4 {[%clk 0:02:39]}  c5 {[%clk 0:02:47]} 6. Nc3 {[%clk 0:02:25]}  cxd4 {[%clk 0:02:46]} 7. Nxd4 {[%clk 0:02:25]}  Ngf6 {[%clk 0:02:46]} 8. Bc4 {[%clk 0:02:16]}  O-O {[%clk 0:02:45]} 9. O-O {[%clk 0:02:15]}  a6 {[%clk 0:02:44]} 10. Ba2 {[%clk 0:02:12]}  Nc5 {[%clk 0:02:42]} 11. Qe2 {[%clk 0:02:08]}  Bd7 {[%clk 0:02:41]} 12. Bg5 {[%clk 0:01:57]}  Rc8 {[%clk 0:02:36]} 13. Rfe1 {[%clk 0:01:49]}  e5 {[%clk 0:02:33]} 14. Nf3 {[%clk 0:01:38]}  Be6 {[%clk 0:02:30]} 15. Red1 {[%clk 0:01:36]}  h6 {[%clk 0:02:20]} 16. Bxf6 {[%clk 0:01:24]}  Bxf6 {[%clk 0:02:18]} 17. Nd5 {[%clk 0:01:18]}  Bxd5 {[%clk 0:02:17]} 18. Bxd5 {[%clk 0:01:19]}  b5 {[%clk 0:02:10]} 19. c4 {[%clk 0:01:17]}  bxc4 {[%clk 0:02:01]} 20. Bxc4 {[%clk 0:01:17]}  a5 {[%clk 0:02:01]} 21. b4 {[%clk 0:01:16]}  axb4 {[%clk 0:01:57]} 22. axb4 {[%clk 0:01:16]}  Ne6 {[%clk 0:01:31]} 23. Bxe6 {[%clk 0:01:16]}  fxe6 {[%clk 0:01:32]} 24. Qd2 {[%clk 0:01:17]}  Kg7 {[%clk 0:01:00]} 25. Qxd6 {[%clk 0:01:15]}  Qxd6 {[%clk 0:00:50]} 26. Rxd6 {[%clk 0:01:16]}  Rce8 {[%clk 0:00:21]} 27. b5 {[%clk 0:01:10]}  Rf7 {[%clk 0:00:21]} 28. b6 {[%clk 0:01:07]}  Rb7 {[%clk 0:00:20]} 29. Ra7 {[%clk 0:01:06]}  Ree7 {[%clk 0:00:20]} 30. Rxb7 {[%clk 0:01:03]}  Rxb7 {[%clk 0:00:21]} 31. Rxe6 {[%clk 0:01:01]}  Kf7 {[%clk 0:00:20]} 32. Rc6 {[%clk 0:01:00]}  Bd8 {[%clk 0:00:19]} 33. Nxe5+ {[%clk 0:01:00]}  Ke8 {[%clk 0:00:17]} 34. Nc4 {[%clk 0:00:56]}  Kd7 {[%clk 0:00:17]} 35. Rxg6 {[%clk 0:00:56]}  h5 {[%clk 0:00:17]} 36. Rg7+ {[%clk 0:00:52]}  Be7 {[%clk 0:00:16]} 37. Rh7 {[%clk 0:00:50]}  h4 {[%clk 0:00:15]} 38. e5 {[%clk 0:00:50]}  Ke6 {[%clk 0:00:16]} 39. Nd6 {[%clk 0:00:45]}  Rxb6 {[%clk 0:00:14]} 40. Rxe7+ {[%clk 0:00:45]}  Kxe7 {[%clk 0:00:12]} 41. Nc8+ {[%clk 0:00:45]}  Ke6 {[%clk 0:00:12]} 42. Nxb6 {[%clk 0:00:46]}  Kxe5 {[%clk 0:00:13]} 43. Nc4+ {[%clk 0:00:46]}  Kf4 {[%clk 0:00:13]} 44. Ne3 {[%clk 0:00:42]} 1-0


[Site "https://www.chess.com"]

[Event "Titled Tuesday Blitz March 21 Early 2023"]
[White "Costachi, Mihnea"]
[Black "Kaufman, Raymond"]
[WhiteFideId "1217518"]
[BlackFideId "2015056"]
[WhiteElo "2456"]
[BlackElo "2321"]
[Result "0-1"]
[Round "11"]
[TimeControl "180+2"]
[Date "2023.03.21"]
[WhiteClock "0:01:48"]
[BlackClock "0:00:22"]

1. e4 {[%clk 0:03:00]}  e5 {[%clk 0:02:58]} 2. f4 {[%clk 0:02:59]}  d5 {[%clk 0:02:46]} 3. exd5 {[%clk 0:02:58]}  exf4 {[%clk 0:02:46]} 4. d4 {[%clk 0:02:57]}  Qxd5 {[%clk 0:02:39]} 5. Bxf4 {[%clk 0:02:54]}  Nf6 {[%clk 0:02:31]} 6. Nc3 {[%clk 0:02:52]}  Bb4 {[%clk 0:02:29]} 7. Qf3 {[%clk 0:02:47]}  Qxd4 {[%clk 0:02:16]} 8. Bb5+ {[%clk 0:02:35]}  c6 {[%clk 0:02:10]} 9. Ne2 {[%clk 0:02:35]}  Qb6 {[%clk 0:01:42]} 10. Bd3 {[%clk 0:02:35]}  Bg4 {[%clk 0:01:39]} 11. Qg3 {[%clk 0:02:32]}  O-O {[%clk 0:01:13]} 12. Be5 {[%clk 0:02:32]}  Nbd7 {[%clk 0:01:06]} 13. h3 {[%clk 0:02:22]}  Bxe2 {[%clk 0:01:03]} 14. Bxf6 {[%clk 0:02:17]}  Nxf6 {[%clk 0:01:03]} 15. Bxe2 {[%clk 0:02:18]}  Rfe8 {[%clk 0:01:01]} 16. Rf1 {[%clk 0:02:18]}  Ne4 {[%clk 0:00:53]} 17. Qf3 {[%clk 0:02:14]}  Bxc3+ {[%clk 0:00:46]} 18. bxc3 {[%clk 0:02:14]}  Qb2 {[%clk 0:00:47]} 19. Qxf7+ {[%clk 0:01:58]}  Kh8 {[%clk 0:00:46]} 20. Bc4 {[%clk 0:01:50]}  Qxc3+ {[%clk 0:00:31]} 21. Ke2 {[%clk 0:01:50]}  Ng3+ {[%clk 0:00:22]} 22. Kf2 {[%clk 0:01:48]}  Qe3# {[%clk 0:00:22]} 0-1


[Site "https://www.chess.com"]

[Event "Titled Tuesday Blitz March 21 Early 2023"]
[White "Horak, Martin"]
[Black "Skvortsov, Andrei"]
[WhiteFideId "367095"]
[BlackFideId "24108600"]
[WhiteElo "2091"]
[BlackElo "2259"]
[Result "1-0"]
[Round "11"]
[TimeControl "180+2"]
[Date "2023.03.21"]
[WhiteClock "0:00:14"]
[BlackClock "0:00:24"]

1. e4 {[%clk 0:03:00]}  c6 {[%clk 0:02:59]} 2. Nf3 {[%clk 0:02:56]}  d5 {[%clk 0:03:00]} 3. Nc3 {[%clk 0:02:56]}  dxe4 {[%clk 0:02:55]} 4. Nxe4 {[%clk 0:02:56]}  Nf6 {[%clk 0:02:56]} 5. Nxf6+ {[%clk 0:02:55]}  exf6 {[%clk 0:02:55]} 6. d4 {[%clk 0:02:52]}  Bd6 {[%clk 0:02:55]} 7. Bc4 {[%clk 0:02:49]}  O-O {[%clk 0:02:47]} 8. O-O {[%clk 0:02:49]}  Bg4 {[%clk 0:02:46]} 9. h3 {[%clk 0:02:49]}  Bh5 {[%clk 0:02:46]} 10. Be2 {[%clk 0:02:43]}  Re8 {[%clk 0:02:45]} 11. Be3 {[%clk 0:02:37]}  Nd7 {[%clk 0:02:40]} 12. Nd2 {[%clk 0:02:35]}  Bxe2 {[%clk 0:02:39]} 13. Qxe2 {[%clk 0:02:34]}  f5 {[%clk 0:02:40]} 14. Qf3 {[%clk 0:02:29]}  g6 {[%clk 0:02:38]} 15. Nc4 {[%clk 0:02:26]}  Bf8 {[%clk 0:02:35]} 16. c3 {[%clk 0:02:25]}  Nf6 {[%clk 0:02:31]} 17. Bg5 {[%clk 0:02:23]}  Bg7 {[%clk 0:02:11]} 18. Rfe1 {[%clk 0:02:20]}  Qd5 {[%clk 0:02:02]} 19. Bxf6 {[%clk 0:02:12]}  Qxf3 {[%clk 0:01:58]} 20. gxf3 {[%clk 0:02:12]}  Bxf6 {[%clk 0:01:57]} 21. Nd6 {[%clk 0:02:11]}  Rxe1+ {[%clk 0:01:55]} 22. Rxe1 {[%clk 0:02:10]}  Rb8 {[%clk 0:01:55]} 23. Kg2 {[%clk 0:01:29]}  Kf8 {[%clk 0:01:55]} 24. f4 {[%clk 0:01:27]}  Be7 {[%clk 0:01:54]} 25. Nc4 {[%clk 0:01:25]}  Bd8 {[%clk 0:01:50]} 26. Ne5 {[%clk 0:01:22]}  Rc8 {[%clk 0:01:46]} 27. Nd7+ {[%clk 0:01:19]}  Kg7 {[%clk 0:01:46]} 28. Re8 {[%clk 0:01:18]}  f6 {[%clk 0:01:39]} 29. Nc5 {[%clk 0:01:15]}  Kf7 {[%clk 0:01:30]} 30. Rh8 {[%clk 0:01:15]}  Rb8 {[%clk 0:01:19]} 31. Rxh7+ {[%clk 0:01:09]}  Kg8 {[%clk 0:01:16]} 32. Rxb7 {[%clk 0:01:08]}  Rxb7 {[%clk 0:01:17]} 33. Nxb7 {[%clk 0:01:08]}  Bc7 {[%clk 0:01:17]} 34. Kf3 {[%clk 0:01:06]}  Kf7 {[%clk 0:01:18]} 35. Nc5 {[%clk 0:01:04]}  g5 {[%clk 0:01:17]} 36. fxg5 {[%clk 0:01:04]}  fxg5 {[%clk 0:01:18]} 37. b4 {[%clk 0:00:59]}  Kg6 {[%clk 0:01:17]} 38. Ne6 {[%clk 0:00:53]}  Bb6 {[%clk 0:01:07]} 39. a4 {[%clk 0:00:50]}  Kf6 {[%clk 0:01:07]} 40. Nc5 {[%clk 0:00:35]}  Bc7 {[%clk 0:01:05]} 41. a5 {[%clk 0:00:26]}  Bf4 {[%clk 0:01:00]} 42. Nb3 {[%clk 0:00:22]}  Bd6 {[%clk 0:00:54]} 43. Nd2 {[%clk 0:00:19]}  Bf4 {[%clk 0:00:48]} 44. Nc4 {[%clk 0:00:20]}  Bc7 {[%clk 0:00:44]} 45. a6 {[%clk 0:00:19]}  Ke6 {[%clk 0:00:42]} 46. Ne3 {[%clk 0:00:18]}  Bd6 {[%clk 0:00:42]} 47. Ke2 {[%clk 0:00:15]}  Bf8 {[%clk 0:00:35]} 48. Kd3 {[%clk 0:00:15]}  Bd6 {[%clk 0:00:34]} 49. Kc4 {[%clk 0:00:14]}  Be7 {[%clk 0:00:34]} 50. d5+ {[%clk 0:00:14]}  cxd5+ {[%clk 0:00:34]} 51. Nxd5 {[%clk 0:00:15]}  Bd8 {[%clk 0:00:30]} 52. b5 {[%clk 0:00:15]}  Kd6 {[%clk 0:00:26]} 53. b6 {[%clk 0:00:15]}  axb6 {[%clk 0:00:23]} 54. a7 {[%clk 0:00:14]}  b5+ {[%clk 0:00:24]} 55. Kxb5 {[%clk 0:00:14]} 1-0


[Site "https://www.chess.com"]

[Event "Titled Tuesday Blitz March 21 Early 2023"]
[White "Larino Nieto, David"]
[Black "Khamdamova, Afruza"]
[WhiteFideId "2256444"]
[BlackFideId "14210444"]
[WhiteElo "2506"]
[BlackElo "2210"]
[Result "1-0"]
[Round "11"]
[TimeControl "180+2"]
[Date "2023.03.21"]
[WhiteClock "0:00:44"]
[BlackClock "0:00:53"]

1. e4 {[%clk 0:02:53]}  e5 {[%clk 0:03:00]} 2. f4 {[%clk 0:02:52]}  exf4 {[%clk 0:02:59]} 3. Nf3 {[%clk 0:02:52]}  Ne7 {[%clk 0:02:58]} 4. Bc4 {[%clk 0:02:51]}  d5 {[%clk 0:02:57]} 5. exd5 {[%clk 0:02:51]}  Nxd5 {[%clk 0:02:58]} 6. O-O {[%clk 0:02:52]}  Be7 {[%clk 0:02:57]} 7. Nc3 {[%clk 0:02:51]}  Nxc3 {[%clk 0:02:57]} 8. bxc3 {[%clk 0:02:51]}  O-O {[%clk 0:02:56]} 9. d4 {[%clk 0:02:51]}  Bd6 {[%clk 0:02:56]} 10. Bd3 {[%clk 0:02:36]}  Bg4 {[%clk 0:02:52]} 11. c4 {[%clk 0:02:35]}  c5 {[%clk 0:02:51]} 12. dxc5 {[%clk 0:02:27]}  Bxc5+ {[%clk 0:02:51]} 13. Kh1 {[%clk 0:02:27]}  Be3 {[%clk 0:02:49]} 14. Qe1 {[%clk 0:02:18]}  Re8 {[%clk 0:02:46]} 15. Bb2 {[%clk 0:02:11]}  Nc6 {[%clk 0:02:39]} 16. Qc3 {[%clk 0:02:08]}  f6 {[%clk 0:02:39]} 17. c5 {[%clk 0:02:06]}  Kh8 {[%clk 0:02:37]} 18. Rad1 {[%clk 0:01:59]}  Qc7 {[%clk 0:02:36]} 19. Bc4 {[%clk 0:01:56]}  Bxf3 {[%clk 0:02:33]} 20. Rxf3 {[%clk 0:01:52]}  Ne5 {[%clk 0:02:33]} 21. Rh3 {[%clk 0:01:52]}  Nxc4 {[%clk 0:02:30]} 22. Qd3 {[%clk 0:01:37]}  h6 {[%clk 0:02:15]} 23. Rxh6+ {[%clk 0:01:15]}  gxh6 {[%clk 0:02:11]} 24. Bxf6+ {[%clk 0:01:14]}  Kg8 {[%clk 0:02:11]} 25. Qg6+ {[%clk 0:01:11]}  Kf8 {[%clk 0:02:11]} 26. Qxh6+ {[%clk 0:01:09]}  Kf7 {[%clk 0:02:04]} 27. Qg7+ {[%clk 0:01:08]}  Ke6 {[%clk 0:02:04]} 28. Qxc7 {[%clk 0:01:07]}  Kxf6 {[%clk 0:02:03]} 29. Qxb7 {[%clk 0:01:07]}  Rac8 {[%clk 0:01:41]} 30. Qa6+ {[%clk 0:01:05]}  Ke7 {[%clk 0:01:28]} 31. Qxc4 {[%clk 0:01:02]}  Rxc5 {[%clk 0:01:28]} 32. Qd3 {[%clk 0:00:55]}  Rh8 {[%clk 0:01:11]} 33. Qd7+ {[%clk 0:00:47]}  Kf6 {[%clk 0:01:10]} 34. Rd6+ {[%clk 0:00:45]}  Ke5 {[%clk 0:00:53]} 35. Qe6# {[%clk 0:00:44]} 1-0


[Site "https://www.chess.com"]

[Event "Titled Tuesday Blitz March 21 Early 2023"]
[White "Khandelwal, Ankush"]
[Black "Tregubov, Pavel V."]
[WhiteFideId "413470"]
[BlackFideId "4115341"]
[WhiteElo "2263"]
[BlackElo "2425"]
[Result "1-0"]
[Round "11"]
[TimeControl "180+2"]
[Date "2023.03.21"]
[WhiteClock "0:00:11"]
[BlackClock "0:00:02"]

1. e4 {[%clk 0:02:58]}  e6 {[%clk 0:02:58]} 2. d4 {[%clk 0:02:55]}  d5 {[%clk 0:02:58]} 3. Nc3 {[%clk 0:02:43]}  Bb4 {[%clk 0:02:57]} 4. e5 {[%clk 0:02:42]}  c5 {[%clk 0:02:55]} 5. a3 {[%clk 0:02:39]}  Ba5 {[%clk 0:02:54]} 6. b4 {[%clk 0:02:32]}  cxd4 {[%clk 0:02:52]} 7. Nb5 {[%clk 0:02:29]}  Bc7 {[%clk 0:02:50]} 8. f4 {[%clk 0:02:27]}  Ne7 {[%clk 0:02:48]} 9. Nf3 {[%clk 0:02:24]}  Bd7 {[%clk 0:02:49]} 10. Nxc7+ {[%clk 0:02:22]}  Qxc7 {[%clk 0:02:48]} 11. Bd3 {[%clk 0:02:18]}  Qb6 {[%clk 0:02:36]} 12. O-O {[%clk 0:02:09]}  Bb5 {[%clk 0:02:36]} 13. Bxb5+ {[%clk 0:02:06]}  Qxb5 {[%clk 0:02:36]} 14. Nxd4 {[%clk 0:02:06]}  Qc4 {[%clk 0:02:34]} 15. f5 {[%clk 0:01:54]}  Nbc6 {[%clk 0:02:29]} 16. Nxc6 {[%clk 0:01:44]}  Nxc6 {[%clk 0:02:19]} 17. fxe6 {[%clk 0:01:43]}  O-O {[%clk 0:01:02]} 18. exf7+ {[%clk 0:01:39]}  Rxf7 {[%clk 0:01:03]} 19. Rxf7 {[%clk 0:01:36]}  Kxf7 {[%clk 0:01:03]} 20. Bb2 {[%clk 0:01:29]}  Kg8 {[%clk 0:00:59]} 21. Qd3 {[%clk 0:01:13]}  Re8 {[%clk 0:00:45]} 22. Re1 {[%clk 0:01:07]}  a6 {[%clk 0:00:30]} 23. Qf5 {[%clk 0:00:51]}  Rf8 {[%clk 0:00:24]} 24. Qd3 {[%clk 0:00:44]}  b5 {[%clk 0:00:13]} 25. Qxc4 {[%clk 0:00:35]}  dxc4 {[%clk 0:00:11]} 26. Rd1 {[%clk 0:00:35]}  Re8 {[%clk 0:00:11]} 27. Rd6 {[%clk 0:00:31]}  Nxe5 {[%clk 0:00:11]} 28. Rxa6 {[%clk 0:00:27]}  Ng4 {[%clk 0:00:11]} 29. Kf1 {[%clk 0:00:15]}  Ne3+ {[%clk 0:00:10]} 30. Kf2 {[%clk 0:00:16]}  Nxc2 {[%clk 0:00:10]} 31. Ra7 {[%clk 0:00:16]}  Rd8 {[%clk 0:00:01]} 32. Rxg7+ {[%clk 0:00:16]}  Kf8 {[%clk 0:00:02]} 33. Rxh7 {[%clk 0:00:16]}  Rd2+ {[%clk 0:00:02]} 34. Kg3 {[%clk 0:00:15]}  Ne1 {[%clk 0:00:02]} 35. Be5 {[%clk 0:00:13]}  Rxg2+ {[%clk 0:00:02]} 36. Kh4 {[%clk 0:00:11]}  Nd3 {[%clk 0:00:01]} 37. Bd6+ {[%clk 0:00:11]}  Ke8 {[%clk 0:00:02]} 38. Kh5 {[%clk 0:00:11]} 1-0


[Site "https://www.chess.com"]